[Event "Late-Titled-Tuesday-Blitz-April-23-2024"]
[Site "Chess.com"]
[Date "2024.04.23"]
[Round "3"]
[White "Ghost_Pepper"]
[Black "IngOscarArdila"]
[Result "1/2-1/2"]
[WhiteElo "2496"]
[BlackElo "2267"]
[TimeControl "180+1"]
[EndTime "14:30:13 PDT"]
[Termination "Game drawn - insufficient material"]

1. e4 {[%clk 0:03:00.9]} 1... e5 {[%clk 0:02:59.6]} 2. Nf3 {[%clk 0:03:01]} 2...
Nf6 {[%clk 0:03:00.3]} 3. Nxe5 {[%clk 0:02:59.1]} 3... d6 {[%clk 0:03:00.8]} 4.
Nf3 {[%clk 0:02:59.2]} 4... Nxe4 {[%clk 0:03:01.4]} 5. Nc3 {[%clk 0:02:59.7]}
5... Nf6 {[%clk 0:03:01.7]} 6. d4 {[%clk 0:02:57.8]} 6... Be7 {[%clk 0:03:02.6]}
7. Bg5 {[%clk 0:02:52.6]} 7... O-O {[%clk 0:03:03.5]} 8. Qd2 {[%clk 0:02:51.7]}
8... Bg4 {[%clk 0:03:03.3]} 9. O-O-O {[%clk 0:02:50.6]} 9... Nbd7 {[%clk
0:03:01.4]} 10. Kb1 {[%clk 0:02:49.8]} 10... d5 {[%clk 0:02:58.8]} 11. h3 {[%clk
0:02:47]} 11... Bh5 {[%clk 0:02:58]} 12. g4 {[%clk 0:02:43.2]} 12... Bg6 {[%clk
0:02:58.2]} 13. Ne5 {[%clk 0:02:39.1]} 13... c6 {[%clk 0:02:54.3]} 14. f4 {[%clk
0:02:34.2]} 14... Ne4 {[%clk 0:02:51.7]} 15. Nxe4 {[%clk 0:02:14.9]} 15... Bxe4
{[%clk 0:02:50.3]} 16. Bxe7 {[%clk 0:02:14.1]} 16... Qxe7 {[%clk 0:02:50.8]} 17.
Bg2 {[%clk 0:02:13]} 17... f6 {[%clk 0:02:32.8]} 18. Nxd7 {[%clk 0:02:06.8]}
18... Qxd7 {[%clk 0:02:33.7]} 19. Bxe4 {[%clk 0:02:05.5]} 19... dxe4 {[%clk
0:02:33.8]} 20. f5 {[%clk 0:02:05.6]} 20... Rfe8 {[%clk 0:02:30]} 21. Rhe1
{[%clk 0:02:01]} 21... Rad8 {[%clk 0:02:26.2]} 22. c4 {[%clk 0:01:52.3]} 22...
Qd6 {[%clk 0:02:19.6]} 23. Qe3 {[%clk 0:01:35.1]} 23... a5 {[%clk 0:02:14.5]}
24. Re2 {[%clk 0:01:29.1]} 24... Qb4 {[%clk 0:02:09.3]} 25. Qc3 {[%clk
0:01:25.9]} 25... Qd6 {[%clk 0:02:04.5]} 26. Kc2 {[%clk 0:01:16.1]} 26... a4
{[%clk 0:02:00.1]} 27. d5 {[%clk 0:01:10.5]} 27... cxd5 {[%clk 0:01:57.7]} 28.
Rxd5 {[%clk 0:01:11.4]} 28... Qf4 {[%clk 0:01:54.6]} 29. Qd4 {[%clk 0:01:07.6]}
29... Rc8 {[%clk 0:01:51]} 30. Rd7 {[%clk 0:01:05.3]} 30... Qe5 {[%clk
0:01:37.6]} 31. Qxe5 {[%clk 0:00:59.4]} 31... Rxe5 {[%clk 0:01:37.7]} 32. b3
{[%clk 0:00:59.3]} 32... axb3+ {[%clk 0:01:37.2]} 33. axb3 {[%clk 0:00:59.9]}
33... b5 {[%clk 0:01:37.7]} 34. Kc3 {[%clk 0:00:59.2]} 34... bxc4 {[%clk
0:01:37.3]} 35. bxc4 {[%clk 0:01:00.1]} 35... e3 {[%clk 0:01:35.2]} 36. Rd4
{[%clk 0:00:54.5]} 36... h5 {[%clk 0:01:32.7]} 37. Kd3 {[%clk 0:00:52.5]} 37...
Rce8 {[%clk 0:01:30.5]} 38. Rd7 {[%clk 0:00:33.7]} 38... hxg4 {[%clk 0:01:29.1]}
39. hxg4 {[%clk 0:00:34.6]} 39... Re4 {[%clk 0:01:28.6]} 40. c5 {[%clk
0:00:34.2]} 40... Rxg4 {[%clk 0:01:12.4]} 41. Rxe3 {[%clk 0:00:33]} 41... Rxe3+
{[%clk 0:01:10.3]} 42. Kxe3 {[%clk 0:00:33.9]} 42... Rc4 {[%clk 0:01:10.7]} 43.
Rc7 {[%clk 0:00:34.2]} 43... Kh7 {[%clk 0:01:06.9]} 44. Kd3 {[%clk 0:00:32.8]}
44... Rc1 {[%clk 0:01:06.6]} 45. Kd4 {[%clk 0:00:33.5]} 45... Kh6 {[%clk
0:01:06]} 46. Kd5 {[%clk 0:00:31.9]} 46... g6 {[%clk 0:01:04.6]} 47. Ke6 {[%clk
0:00:26.4]} 47... gxf5 {[%clk 0:00:57.9]} 48. Kxf5 {[%clk 0:00:27.3]} 48... Rf1+
{[%clk 0:00:57.1]} 49. Ke6 {[%clk 0:00:27.7]} 49... Kg6 {[%clk 0:00:56.1]} 50.
c6 {[%clk 0:00:27.8]} 50... Re1+ {[%clk 0:00:56.4]} 51. Kd5 {[%clk 0:00:28.3]}
51... f5 {[%clk 0:00:54.8]} 52. Rc8 {[%clk 0:00:27.5]} 52... Rd1+ {[%clk
0:00:51.2]} 53. Ke5 {[%clk 0:00:26.7]} 53... Re1+ {[%clk 0:00:51.6]} 54. Kd6
{[%clk 0:00:26.9]} 54... Rd1+ {[%clk 0:00:51.9]} 55. Ke6 {[%clk 0:00:26.9]}
55... Re1+ {[%clk 0:00:52.3]} 56. Kd7 {[%clk 0:00:27]} 56... Rd1+ {[%clk
0:00:52.6]} 57. Ke8 {[%clk 0:00:26.9]} 57... Re1+ {[%clk 0:00:52.8]} 58. Kf8
{[%clk 0:00:27.1]} 58... f4 {[%clk 0:00:46.5]} 59. Rc7 {[%clk 0:00:21.6]} 59...
Kg5 {[%clk 0:00:38.5]} 60. Rg7+ {[%clk 0:00:20.4]} 60... Kf5 {[%clk 0:00:37.3]}
61. Rf7+ {[%clk 0:00:21]} 61... Kg4 {[%clk 0:00:37.3]} 62. c7 {[%clk 0:00:21.2]}
62... Rc1 {[%clk 0:00:37.2]} 63. Ke8 {[%clk 0:00:21.8]} 63... f3 {[%clk
0:00:37.3]} 64. Kd8 {[%clk 0:00:22.2]} 64... Kg3 {[%clk 0:00:34.6]} 65. Rg7+
{[%clk 0:00:22]} 65... Kh2 {[%clk 0:00:34.1]} 66. Rg6 {[%clk 0:00:22.9]} 66...
f2 {[%clk 0:00:29.5]} 67. Rf6 {[%clk 0:00:23.3]} 67... Kg2 {[%clk 0:00:29.4]}
68. Rxf2+ {[%clk 0:00:22.7]} 68... Kxf2 {[%clk 0:00:29.4]} 69. c8=Q {[%clk
0:00:23.6]} 69... Rxc8+ {[%clk 0:00:29]} 70. Kxc8 {[%clk 0:00:24.5]} 1/2-1/2

[Event "Late-Titled-Tuesday-Blitz-April-23-2024"]
[Site "Chess.com"]
[Date "2024.04.23"]
[Round "3"]
[White "Harry_Rakkel"]
[Black "NajdorfPlayerc5"]
[Result "1-0"]
[WhiteElo "2702"]
[BlackElo "2465"]
[TimeControl "180+1"]
[EndTime "14:30:14 PDT"]
[Termination "Harry_Rakkel won by resignation"]

1. e4 {[%clk 0:03:00.9]} 1... c5 {[%clk 0:02:58.7]} 2. Nf3 {[%clk 0:03:00.8]}
2... d6 {[%clk 0:02:58.7]} 3. d4 {[%clk 0:03:00.6]} 3... cxd4 {[%clk 0:02:59.6]}
4. Nxd4 {[%clk 0:03:00.8]} 4... Nf6 {[%clk 0:02:59.9]} 5. Nc3 {[%clk 0:03:00.7]}
5... a6 {[%clk 0:03:00.4]} 6. Be3 {[%clk 0:03:00.2]} 6... e5 {[%clk 0:03:00.4]}
7. Nb3 {[%clk 0:02:59.7]} 7... Be7 {[%clk 0:03:00.3]} 8. h3 {[%clk 0:02:58.9]}
8... h5 {[%clk 0:02:43.6]} 9. f4 {[%clk 0:02:57.1]} 9... Nbd7 {[%clk 0:02:38.6]}
10. Qf3 {[%clk 0:02:54.4]} 10... b5 {[%clk 0:02:37.5]} 11. O-O-O {[%clk
0:02:38.1]} 11... Bb7 {[%clk 0:02:36.9]} 12. Kb1 {[%clk 0:01:48.7]} 12... b4
{[%clk 0:02:34.5]} 13. Nd5 {[%clk 0:01:47.9]} 13... Nxd5 {[%clk 0:02:22.2]} 14.
exd5 {[%clk 0:01:47.6]} 14... a5 {[%clk 0:02:22.7]} 15. Bb5 {[%clk 0:01:44.6]}
15... a4 {[%clk 0:02:10.7]} 16. Nd2 {[%clk 0:01:42.7]} 16... b3 {[%clk
0:01:20.6]} 17. cxb3 {[%clk 0:01:30.3]} 17... axb3 {[%clk 0:01:20.1]} 18. Nxb3
{[%clk 0:01:30]} 18... Bf6 {[%clk 0:01:08.1]} 19. fxe5 {[%clk 0:01:24.8]} 19...
Bxe5 {[%clk 0:01:02.1]} 20. Bd4 {[%clk 0:01:23.9]} 20... O-O {[%clk 0:00:30.5]}
21. Bxd7 {[%clk 0:01:21.9]} 21... Qxd7 {[%clk 0:00:30.2]} 22. Bxe5 {[%clk
0:01:21.9]} 22... dxe5 {[%clk 0:00:30.4]} 23. Nc5 {[%clk 0:01:21.7]} 23... Qc7
{[%clk 0:00:24.4]} 24. Nxb7 {[%clk 0:01:20.2]} 24... Qxb7 {[%clk 0:00:24.1]} 25.
d6 {[%clk 0:01:17.2]} 25... Qa6 {[%clk 0:00:13.5]} 26. Qd5 {[%clk 0:01:15.2]}
26... Rfd8 {[%clk 0:00:10.5]} 27. Rhf1 {[%clk 0:01:02]} 27... Rd7 {[%clk
0:00:05.9]} 28. a3 {[%clk 0:01:01.4]} 28... Rb8 {[%clk 0:00:05.4]} 29. Qd3
{[%clk 0:00:45.4]} 29... Qb6 {[%clk 0:00:02.3]} 30. Rd2 {[%clk 0:00:43.4]} 30...
Qb7 {[%clk 0:00:02.2]} 31. Qd5 {[%clk 0:00:32.2]} 31... Qa7 {[%clk 0:00:01.4]}
32. Rf3 {[%clk 0:00:26.2]} 32... Qb6 {[%clk 0:00:01.7]} 33. Ka2 {[%clk
0:00:22.7]} 33... Rbd8 {[%clk 0:00:02]} 34. Rb3 {[%clk 0:00:20.8]} 34... Qa6
{[%clk 0:00:01.7]} 35. Qb5 {[%clk 0:00:20]} 35... Qxb5 {[%clk 0:00:01.6]} 36.
Rxb5 {[%clk 0:00:19.9]} 36... Rxd6 {[%clk 0:00:02.5]} 37. Rxd6 {[%clk 0:00:20]}
37... Rxd6 {[%clk 0:00:03.4]} 38. Rxe5 {[%clk 0:00:20]} 38... Rd2 {[%clk
0:00:03.5]} 39. Rxh5 {[%clk 0:00:19]} 39... Rxg2 {[%clk 0:00:03.3]} 40. a4
{[%clk 0:00:19.2]} 40... g6 {[%clk 0:00:02.6]} 41. Rc5 {[%clk 0:00:18.7]} 41...
f5 {[%clk 0:00:02.3]} 42. a5 {[%clk 0:00:18.5]} 42... Re2 {[%clk 0:00:02.4]} 43.
a6 {[%clk 0:00:18.5]} 43... Re6 {[%clk 0:00:01.6]} 44. Ra5 {[%clk 0:00:18.2]}
44... Re8 {[%clk 0:00:02]} 45. a7 {[%clk 0:00:18.1]} 45... Ra8 {[%clk
0:00:02.7]} 46. Kb1 {[%clk 0:00:17.8]} 46... Kf7 {[%clk 0:00:02.3]} 47. b4
{[%clk 0:00:17.5]} 47... f4 {[%clk 0:00:01.9]} 48. Kc2 {[%clk 0:00:17.3]} 48...
f3 {[%clk 0:00:01.5]} 49. Kd2 {[%clk 0:00:17.1]} 49... Ke7 {[%clk 0:00:01.1]}
50. Ke3 {[%clk 0:00:16.9]} 50... Kd7 {[%clk 0:00:01.5]} 51. Kxf3 {[%clk
0:00:17.3]} 51... Kc7 {[%clk 0:00:02.1]} 52. Kg4 {[%clk 0:00:17.6]} 52... Kb6
{[%clk 0:00:02.5]} 53. Kg5 {[%clk 0:00:17.5]} 53... Rxa7 {[%clk 0:00:02.9]} 54.
Rxa7 {[%clk 0:00:17.2]} 54... Kxa7 {[%clk 0:00:03.8]} 55. Kxg6 {[%clk
0:00:17.6]} 55... Kb6 {[%clk 0:00:04.7]} 56. h4 {[%clk 0:00:18.1]} 56... Kb5
{[%clk 0:00:05.6]} 57. h5 {[%clk 0:00:18.9]} 1-0

[Event "Late-Titled-Tuesday-Blitz-April-23-2024"]
[Site "Chess.com"]
[Date "2024.04.23"]
[Round "3"]
[White "PapaieDudu"]
[Black "BabageldiAnnaberdiyev"]
[Result "1-0"]
[WhiteElo "2441"]
[BlackElo "2590"]
[TimeControl "180+1"]
[EndTime "14:30:17 PDT"]
[Termination "PapaieDudu won by checkmate"]

1. Nf3 {[%clk 0:02:59.8]} 1... e6 {[%clk 0:02:59.8]} 2. d4 {[%clk 0:03:00.3]}
2... d5 {[%clk 0:02:59.8]} 3. c4 {[%clk 0:03:00.9]} 3... f5 {[%clk 0:02:59.6]}
4. cxd5 {[%clk 0:02:58.4]} 4... exd5 {[%clk 0:03:00.5]} 5. Nc3 {[%clk 0:02:57]}
5... Nf6 {[%clk 0:03:01]} 6. Bg5 {[%clk 0:02:56.9]} 6... c6 {[%clk 0:03:01.2]}
7. e3 {[%clk 0:02:56.6]} 7... Bd6 {[%clk 0:03:01]} 8. Bd3 {[%clk 0:02:55.4]}
8... O-O {[%clk 0:02:57]} 9. O-O {[%clk 0:02:55.3]} 9... Qe8 {[%clk 0:02:56.8]}
10. Qc2 {[%clk 0:02:49.1]} 10... Ne4 {[%clk 0:02:56.6]} 11. Bh4 {[%clk
0:02:43.3]} 11... Nd7 {[%clk 0:02:54.5]} 12. Bg3 {[%clk 0:02:40.3]} 12... Qe7
{[%clk 0:02:51.2]} 13. a3 {[%clk 0:02:29.4]} 13... a5 {[%clk 0:02:50.8]} 14.
Rfb1 {[%clk 0:02:20.5]} 14... Nxg3 {[%clk 0:02:43.5]} 15. hxg3 {[%clk
0:02:20.4]} 15... g6 {[%clk 0:02:44.1]} 16. Re1 {[%clk 0:01:49.6]} 16... Nf6
{[%clk 0:02:42.3]} 17. Nd2 {[%clk 0:01:46.2]} 17... Ne4 {[%clk 0:02:41.6]} 18.
Ne2 {[%clk 0:01:46.1]} 18... Bd7 {[%clk 0:02:35.2]} 19. Nf3 {[%clk 0:01:41.9]}
19... Rae8 {[%clk 0:02:33.6]} 20. Nd2 {[%clk 0:01:36.4]} 20... Nxf2 {[%clk
0:02:20.6]} 21. Kxf2 {[%clk 0:01:24.5]} 21... Qxe3+ {[%clk 0:02:20.4]} 22. Kf1
{[%clk 0:01:25.1]} 22... Bxg3 {[%clk 0:02:14.4]} 23. Nxg3 {[%clk 0:01:25.6]}
23... Qxg3 {[%clk 0:02:14.5]} 24. Nf3 {[%clk 0:01:20.8]} 24... Re4 {[%clk
0:01:19.9]} 25. Qf2 {[%clk 0:01:10.1]} 25... Qd6 {[%clk 0:01:18.9]} 26. Ne5
{[%clk 0:01:06.9]} 26... Rxe1+ {[%clk 0:00:40.7]} 27. Qxe1 {[%clk 0:01:01.8]}
27... Be8 {[%clk 0:00:41.6]} 28. Qc3 {[%clk 0:01:00.6]} 28... a4 {[%clk
0:00:37.5]} 29. Re1 {[%clk 0:00:59.4]} 29... Qf6 {[%clk 0:00:37]} 30. Nf3 {[%clk
0:00:58.5]} 30... Bf7 {[%clk 0:00:35]} 31. Bc2 {[%clk 0:00:57.4]} 31... b5
{[%clk 0:00:34.1]} 32. Ne5 {[%clk 0:00:57.1]} 32... Be8 {[%clk 0:00:32.2]} 33.
Kg1 {[%clk 0:00:53]} 33... Qh4 {[%clk 0:00:31.3]} 34. Nf3 {[%clk 0:00:44.4]}
34... Qg3 {[%clk 0:00:30.8]} 35. Re5 {[%clk 0:00:43.9]} 35... h5 {[%clk
0:00:27.9]} 36. Qe3 {[%clk 0:00:41.7]} 36... h4 {[%clk 0:00:26.3]} 37. Qh6
{[%clk 0:00:38.4]} 37... h3 {[%clk 0:00:16.4]} 38. Qxh3 {[%clk 0:00:36]} 38...
Qf4 {[%clk 0:00:16.6]} 39. Re7 {[%clk 0:00:17.6]} 39... Bf7 {[%clk 0:00:15.3]}
40. Bd3 {[%clk 0:00:15.3]} 40... Qc1+ {[%clk 0:00:15.3]} 41. Kh2 {[%clk
0:00:15.3]} 41... Qxb2 {[%clk 0:00:15.9]} 42. Ng5 {[%clk 0:00:13.7]} 42... Kg7
{[%clk 0:00:13.5]} 43. Qh7+ {[%clk 0:00:10.9]} 43... Kf6 {[%clk 0:00:13.9]} 44.
Nxf7 {[%clk 0:00:07.9]} 44... Kxe7 {[%clk 0:00:10.4]} 45. Ne5+ {[%clk
0:00:07.8]} 45... Kf6 {[%clk 0:00:10.1]} 46. Qxg6+ {[%clk 0:00:07.5]} 46... Ke7
{[%clk 0:00:10]} 47. Qg7+ {[%clk 0:00:05.4]} 47... Ke6 {[%clk 0:00:07.6]} 48.
Qd7+ {[%clk 0:00:05.4]} 48... Kf6 {[%clk 0:00:07.4]} 49. Qxc6+ {[%clk
0:00:05.4]} 49... Kg5 {[%clk 0:00:06.9]} 50. Qg6+ {[%clk 0:00:05.4]} 50... Kf4
{[%clk 0:00:07.5]} 51. Qg3# {[%clk 0:00:05.3]} 1-0

[Event "Late-Titled-Tuesday-Blitz-April-23-2024"]
[Site "Chess.com"]
[Date "2024.04.23"]
[Round "3"]
[White "chessdjw"]
[Black "BlackGod93"]
[Result "1-0"]
[WhiteElo "2804"]
[BlackElo "2564"]
[TimeControl "180+1"]
[EndTime "14:30:18 PDT"]
[Termination "chessdjw won on time"]

1. d4 {[%clk 0:03:00.9]} 1... Nf6 {[%clk 0:02:58.1]} 2. c4 {[%clk 0:03:01.1]}
2... c5 {[%clk 0:02:57.3]} 3. d5 {[%clk 0:03:00.5]} 3... b5 {[%clk 0:02:57.9]}
4. cxb5 {[%clk 0:03:00.8]} 4... a6 {[%clk 0:02:58.5]} 5. bxa6 {[%clk 0:03:01.4]}
5... g6 {[%clk 0:02:58.2]} 6. Nc3 {[%clk 0:03:01.9]} 6... Bg7 {[%clk 0:02:58.8]}
7. Nf3 {[%clk 0:02:55.8]} 7... O-O {[%clk 0:02:55.7]} 8. a7 {[%clk 0:02:53.3]}
8... Rxa7 {[%clk 0:02:53.9]} 9. e4 {[%clk 0:02:53.9]} 9... e6 {[%clk 0:02:53.7]}
10. Be2 {[%clk 0:02:53.6]} 10... exd5 {[%clk 0:02:51.7]} 11. exd5 {[%clk
0:02:54.5]} 11... d6 {[%clk 0:02:50.2]} 12. O-O {[%clk 0:02:55]} 12... Na6
{[%clk 0:02:48.9]} 13. Bf4 {[%clk 0:02:38.9]} 13... Rd7 {[%clk 0:02:45]} 14. Bb5
{[%clk 0:02:35.4]} 14... Re7 {[%clk 0:02:40.8]} 15. a3 {[%clk 0:02:20.1]} 15...
Ne4 {[%clk 0:02:36.9]} 16. Nxe4 {[%clk 0:02:15.1]} 16... Rxe4 {[%clk 0:02:36.9]}
17. Bg5 {[%clk 0:02:15.7]} 17... Qb6 {[%clk 0:02:36.2]} 18. a4 {[%clk
0:02:08.9]} 18... Bxb2 {[%clk 0:02:29.8]} 19. Qc2 {[%clk 0:01:46.3]} 19... Rb4
{[%clk 0:02:29.7]} 20. Rad1 {[%clk 0:01:38.2]} 20... Bf5 {[%clk 0:02:27.9]} 21.
Qd2 {[%clk 0:01:29.7]} 21... Bg7 {[%clk 0:02:25.3]} 22. Bh6 {[%clk 0:01:25.7]}
22... Nc7 {[%clk 0:02:24.4]} 23. Bxg7 {[%clk 0:01:22.7]} 23... Kxg7 {[%clk
0:02:24.3]} 24. Qc3+ {[%clk 0:01:20.5]} 24... Kg8 {[%clk 0:02:18.6]} 25. Bc6
{[%clk 0:01:17.6]} 25... Rb3 {[%clk 0:02:12.4]} 26. Qf6 {[%clk 0:01:18]} 26...
Ne8 {[%clk 0:01:58.8]} 27. Qe7 {[%clk 0:01:14.6]} 27... Qc7 {[%clk 0:01:58.1]}
28. Qh4 {[%clk 0:01:09.3]} 28... Ng7 {[%clk 0:01:54.2]} 29. Rfe1 {[%clk
0:01:04.9]} 29... Rb4 {[%clk 0:01:50.1]} 30. Qh6 {[%clk 0:01:03.9]} 30... f6
{[%clk 0:01:45.2]} 31. Ra1 {[%clk 0:00:53]} 31... Bc2 {[%clk 0:01:31.4]} 32. a5
{[%clk 0:00:42.5]} 32... Nf5 {[%clk 0:01:31.4]} 33. Qd2 {[%clk 0:00:43.2]} 33...
Be4 {[%clk 0:01:26.7]} 34. Rxe4 {[%clk 0:00:24.4]} 34... Rxe4 {[%clk 0:01:25.5]}
35. a6 {[%clk 0:00:23.8]} 35... Ree8 {[%clk 0:00:45]} 36. Bxe8 {[%clk
0:00:18.1]} 36... Rxe8 {[%clk 0:00:45.9]} 37. h3 {[%clk 0:00:17.7]} 37... Ra8
{[%clk 0:00:45.2]} 38. Qe2 {[%clk 0:00:15.1]} 38... c4 {[%clk 0:00:36.7]} 39. g4
{[%clk 0:00:14.9]} 39... Ne7 {[%clk 0:00:32.1]} 40. Qe6+ {[%clk 0:00:11.8]}
40... Kg7 {[%clk 0:00:31.9]} 41. Nd4 {[%clk 0:00:08.2]} 41... Nc8 {[%clk
0:00:20.6]} 42. Qe3 {[%clk 0:00:07.3]} 42... Qb6 {[%clk 0:00:06.3]} 43. Ne6+
{[%clk 0:00:08.2]} 43... Kg8 {[%clk 0:00:02.5]} 44. Qh6 {[%clk 0:00:08.4]} 1-0

[Event "Late-Titled-Tuesday-Blitz-April-23-2024"]
[Site "Chess.com"]
[Date "2024.04.23"]
[Round "3"]
[White "Karacsonyi_Gellert"]
[Black "h4parah5"]
[Result "0-1"]
[WhiteElo "2754"]
[BlackElo "3030"]
[TimeControl "180+1"]
[EndTime "14:30:25 PDT"]
[Termination "h4parah5 won on time"]

1. e4 {[%clk 0:03:00.9]} 1... c5 {[%clk 0:02:59.1]} 2. Nf3 {[%clk 0:03:00.7]}
2... Nc6 {[%clk 0:02:58.9]} 3. d4 {[%clk 0:03:00.2]} 3... cxd4 {[%clk
0:02:59.8]} 4. Nxd4 {[%clk 0:03:01.1]} 4... Nf6 {[%clk 0:02:59.7]} 5. Nc3 {[%clk
0:03:01.5]} 5... h5 {[%clk 0:03:00.2]} 6. Bg5 {[%clk 0:02:46.1]} 6... Qa5 {[%clk
0:02:59.2]} 7. Bxf6 {[%clk 0:02:38.4]} 7... gxf6 {[%clk 0:03:00.1]} 8. Be2
{[%clk 0:02:33]} 8... Qe5 {[%clk 0:02:40.8]} 9. Nf3 {[%clk 0:02:28.7]} 9... Qb8
{[%clk 0:02:31.5]} 10. Qd2 {[%clk 0:02:27.5]} 10... e6 {[%clk 0:02:29.4]} 11.
O-O {[%clk 0:02:23.3]} 11... a6 {[%clk 0:02:27.9]} 12. a4 {[%clk 0:02:21.5]}
12... Qc7 {[%clk 0:02:24.5]} 13. Kh1 {[%clk 0:02:19.2]} 13... b6 {[%clk
0:02:19.6]} 14. Rad1 {[%clk 0:02:18.6]} 14... Bb7 {[%clk 0:02:16.3]} 15. Rfe1
{[%clk 0:02:11.6]} 15... Bc5 {[%clk 0:02:10.2]} 16. Bf1 {[%clk 0:02:11]} 16...
Rc8 {[%clk 0:02:02]} 17. Nd5 {[%clk 0:02:01.2]} 17... exd5 {[%clk 0:01:55.1]}
18. exd5+ {[%clk 0:02:02.1]} 18... Ne5 {[%clk 0:01:53.3]} 19. Nxe5 {[%clk
0:02:02.2]} 19... fxe5 {[%clk 0:01:52.6]} 20. d6 {[%clk 0:02:01.2]} 20... Qxd6
{[%clk 0:01:33.2]} 21. Qxd6 {[%clk 0:02:00.4]} 21... Bxd6 {[%clk 0:01:34.1]} 22.
Rxd6 {[%clk 0:02:00.8]} 22... Rxc2 {[%clk 0:01:34.6]} 23. Rxb6 {[%clk
0:01:57.7]} 23... Bc8 {[%clk 0:01:30.2]} 24. Bxa6 {[%clk 0:01:52.2]} 24... Bxa6
{[%clk 0:01:27.4]} 25. Rxa6 {[%clk 0:01:53.1]} 25... Kf8 {[%clk 0:01:20.6]} 26.
b4 {[%clk 0:01:40.5]} 26... Rxf2 {[%clk 0:01:18.7]} 27. Kg1 {[%clk 0:01:30.3]}
27... Rb2 {[%clk 0:01:17.8]} 28. Rxe5 {[%clk 0:00:56.5]} 28... Rxb4 {[%clk
0:01:14.4]} 29. Ra8+ {[%clk 0:00:49.4]} 29... Kg7 {[%clk 0:01:14.1]} 30. Rxh8
{[%clk 0:00:50.3]} 30... Kxh8 {[%clk 0:01:15]} 31. Rxh5+ {[%clk 0:00:50.9]}
31... Kg7 {[%clk 0:01:15.5]} 32. a5 {[%clk 0:00:50.4]} 32... Rb2 {[%clk
0:01:13.9]} 33. Rd5 {[%clk 0:00:49.5]} 33... Ra2 {[%clk 0:01:14.1]} 34. h4
{[%clk 0:00:48.6]} 34... Kg6 {[%clk 0:01:13.9]} 35. h5+ {[%clk 0:00:47.7]} 35...
Kh6 {[%clk 0:01:13.7]} 36. Kh2 {[%clk 0:00:47.7]} 36... Ra3 {[%clk 0:01:12.7]}
37. g3 {[%clk 0:00:47.6]} 37... f6 {[%clk 0:01:07.5]} 38. Kh3 {[%clk 0:00:46]}
38... Ra4 {[%clk 0:01:06.8]} 39. g4 {[%clk 0:00:44.7]} 39... Ra1 {[%clk
0:01:06]} 40. Kg3 {[%clk 0:00:35.2]} 40... Ra4 {[%clk 0:00:53.8]} 41. Kh4 {[%clk
0:00:27.3]} 41... Ra1 {[%clk 0:00:53.8]} 42. Rd6 {[%clk 0:00:19]} 42... Rh1+
{[%clk 0:00:46.7]} 43. Kg3 {[%clk 0:00:19.5]} 43... Kg5 {[%clk 0:00:33.2]} 44.
Rd5+ {[%clk 0:00:19.5]} 44... Kh6 {[%clk 0:00:32.9]} 45. Rxd7 {[%clk 0:00:20.4]}
45... Rg1+ {[%clk 0:00:30.3]} 46. Kf3 {[%clk 0:00:20.2]} 46... Ra1 {[%clk
0:00:29.1]} 47. Rd5 {[%clk 0:00:19.1]} 47... Ra4 {[%clk 0:00:28.8]} 48. Kg3
{[%clk 0:00:18.8]} 48... Ra1 {[%clk 0:00:28.3]} 49. Kf4 {[%clk 0:00:16.3]} 49...
Rf1+ {[%clk 0:00:26.3]} 50. Ke4 {[%clk 0:00:16.5]} 50... Rg1 {[%clk 0:00:24.4]}
51. Kf5 {[%clk 0:00:14.4]} 51... Rf1+ {[%clk 0:00:24.4]} 52. Ke6 {[%clk
0:00:14.8]} 52... Rf4 {[%clk 0:00:24.6]} 53. a6 {[%clk 0:00:07.6]} 53... Ra4
{[%clk 0:00:22.4]} 54. Rd6 {[%clk 0:00:07.5]} 54... Kg5 {[%clk 0:00:21.2]} 55.
h6 {[%clk 0:00:06]} 55... Re4+ {[%clk 0:00:13.7]} 56. Kf7 {[%clk 0:00:03.8]}
56... Rxg4 {[%clk 0:00:13.6]} 0-1